fUSD/lending_fUSD_20250525
["ID","MTS","AMOUNT","RATE_DAILY","PERIOD"]
[362267057,1748131394449,44246.09826534,0.000269,120]
[362267058,1748131394482,1955753.90173466,0.000269,120]
[362267059,1748131439829,1277470.83146197,0.00027397,120]
[362267060,1748131539185,-1000.0,0.00018433,2]
[362267061,1748131539207,-44.67451181,0.00018453,2]
[362267062,1748131631101,-456.12,0.00018368,2]
[362267063,1748131631124,-150.0,0.0001837,7]
[362267064,1748131631148,-205.32548819,0.00018453,2]
[362267065,1748131631169,-494.24380568,0.00018608,2]
[362267067,1748131718819,150.0,0.00017502,2]
[362267069,1748131805149,350.89,0.00013699,2]
[362267070,1748131807596,139.11,7.945e-05,2]
[362267071,1748131807617,68.752085,7.945e-05,2]
[362267073,1748131832231,-204.0,0.00018329,2]
[362267074,1748131832241,-158.32,0.00018408,2]
[362267075,1748131832252,-158.32,0.00018414,2]
[362267076,1748131832263,-158.32,0.00018421,2]
[362267077,1748131832274,-103.0277507,0.00018427,2]
[362267078,1748131832288,-55.2922493,0.00018427,2]
[362267079,1748131832299,-158.32,0.00018434,2]
[362267080,1748131832311,-158.32,0.00018441,2]
[362267081,1748131832518,-158.32,0.00018447,2]
[362267082,1748131832611,-158.32,0.00018454,2]
[362267083,1748131832621,-110.2761153,0.0001846,2]
[362267084,1748131832633,-48.0438847,0.0001846,2]
[362267085,1748131832643,-158.32,0.00018467,2]
[362267086,1748131832653,-158.32,0.00018473,2]
[362267087,1748131832662,-91.72569734,0.0001848,2]
[362267088,1748131832674,-66.59430266,0.0001848,2]
[362267089,1748131832683,-158.32,0.00018487,2]
[362267090,1748131832693,-158.32,0.00018493,2]
[362267091,1748131832703,-158.32,0.000185,2]
[362267092,1748131832716,-628.09819338,0.00018607,2]
[362267093,1748131832728,-432.32632991,0.00018607,2]
[362267094,1748131832741,-139.57547671,0.00018607,2]
[362267095,1748131832751,-3204.13322949,0.00018608,2]
[362267097,1748131832767,-645.94067298,0.00018608,2]
[362267099,1748131832779,-2053.26229185,0.00018608,2]
[362267101,1748131832790,-150.0,0.00018619,2]
[362267103,1748131832799,-300.0,0.00018717,2]
[362267105,1748131832810,-419.85,0.00018718,2]
[362267106,1748131832819,-173.0,0.00018898,2]
[362267107,1748131832828,-350.0,0.00019,2]
[362267108,1748131832838,-487.0,0.00019045,2]
[362267109,1748131832848,-207.4,0.00019166,2]
[362267110,1748131832858,-156.39469174,0.00019166,2]
[362267111,1748131832868,-151.0,0.00019166,2]
[362267112,1748131832877,-420.0,0.00019178,2]
[362267113,1748131832887,-163.34560962,0.00019178,2]
[362267114,1748131832896,-228.80298857,0.00019178,2]
[362267115,1748131832906,-788.88,0.00019178,2]
[362267116,1748131832915,-420.0,0.00019178,2]
[362267117,1748131832925,-1292.76,0.00019178,2]
[362267118,1748131832935,-420.0,0.00019178,2]
[362267119,1748131832944,-420.0,0.00019178,2]
[362267120,1748131832954,-420.0,0.00019178,2]
[362267121,1748131832964,-12096.24,0.00019178,2]
[362267122,1748131832974,-420.0,0.00019178,2]
[362267123,1748131832984,-420.0,0.00019178,2]
[362267124,1748131832994,-420.0,0.00019178,2]
[362267125,1748131833003,-420.0,0.00019178,2]
[362267126,1748131833012,-420.0,0.00019178,2]
[362267127,1748131833022,-420.0,0.00019178,2]
[362267128,1748131833031,-420.0,0.00019178,2]
[362267129,1748131833041,-474.3,0.00019178,2]
[362267130,1748131833051,-420.0,0.00019178,2]
[362267131,1748131833061,-420.0,0.00019178,2]
[362267132,1748131833071,-438.46,0.00019178,2]
[362267133,1748131833082,-338.26173166,0.00019178,2]
[362267134,1748131833091,-348.19,0.00019178,2]
[362267135,1748131833101,-429.05,0.00019178,2]
[362267136,1748131833111,-420.0,0.00019178,2]
[362267137,1748131833121,-420.0,0.00019178,2]
[362267138,1748131833131,-754.94,0.00019178,2]
[362267139,1748131833144,-810.20011849,0.00019178,2]
[362267140,1748131833156,-697.0,0.00019178,2]
[362267141,1748131833176,-194.48988151,0.00019178,2]
[362267142,1748131833186,-679.0,0.00019178,2]
[362267143,1748131833196,-155.80710612,0.00019178,2]
[362267175,1748131838275,-264.19289388,0.00019178,2]
[362267176,1748131838284,-668.12,0.00019178,2]
[362267177,1748131838294,-420.0,0.00019178,2]
[362267178,1748131838303,-420.0,0.00019178,2]
[362267179,1748131838314,-815.21,0.00019178,2]
[362267180,1748131838323,-330.81435687,0.00019178,2]
[362267181,1748131838334,-89.18564313,0.00019178,2]
[362267182,1748131838344,-420.0,0.00019205,2]
[362267183,1748131838353,-165.02967662,0.00019205,2]
[362267184,1748131838364,-623.85032338,0.00019205,2]
[362267185,1748131838373,-420.0,0.00019205,2]
[362267186,1748131838382,-1292.76,0.00019205,2]
[362267187,1748131838391,-420.0,0.00019205,2]
[362267188,1748131838400,-420.0,0.00019205,2]
[362267189,1748131838409,-420.0,0.00019205,2]
[362267190,1748131838418,-12096.24,0.00019205,2]
[362267191,1748131838427,-420.0,0.00019205,2]
[362267192,1748131838437,-420.0,0.00019205,2]
[362267193,1748131838446,-420.0,0.00019205,2]
[362267194,1748131838455,-420.0,0.00019205,2]
[362267195,1748131838465,-420.0,0.00019205,2]
[362267196,1748131838475,-420.0,0.00019205,2]
[362267197,1748131838484,-474.3,0.00019205,2]
[362267198,1748131838493,-420.0,0.00019205,2]
[362267200,1748131838503,-429.05,0.00019205,2]
[362267202,1748131838512,-420.0,0.00019205,2]
[362267203,1748131838521,-754.94,0.00019205,2]
[362267204,1748131838530,-1701.69,0.00019205,2]
[362267205,1748131838540,-679.0,0.00019205,2]
[362267206,1748131838549,-420.0,0.00019205,2]
[362267207,1748131838558,-668.12,0.00019205,2]
[362267208,1748131838567,-420.0,0.00019205,2]
[362267209,1748131838577,-420.0,0.00019205,2]
[362267210,1748131838586,-815.21,0.00019205,2]
[362267213,1748131838595,-158.8002,0.00019232,2]
[362267216,1748131838605,-788.88,0.00019232,2]
[362267219,1748131838614,-420.0,0.00019232,2]
[362267222,1748131838624,-1292.76,0.00019232,2]
[362267225,1748131838632,-420.0,0.00019232,2]
[362267228,1748131838641,-420.0,0.00019232,2]
[362267231,1748131838650,-411.33,0.00019232,2]
[362267233,1748131838660,-12096.24,0.00019232,2]
[362267235,1748131838670,-420.0,0.00019232,2]
[362267237,1748131838679,-420.0,0.00019232,2]
[362267239,1748131838690,-420.0,0.00019232,2]
[362267241,1748131838699,-420.0,0.00019232,2]
[362267243,1748131838709,-420.0,0.00019232,2]
[362267245,1748131838718,-420.0,0.00019232,2]
[362267247,1748131838727,-474.3,0.00019232,2]
[362267249,1748131838736,-420.0,0.00019232,2]
[362267251,1748131838746,-429.05,0.00019232,2]
[362267253,1748131838755,-754.94,0.00019232,2]
[362267255,1748131838764,-1701.69,0.00019232,2]
[362267257,1748131838773,-679.0,0.00019232,2]
[362267259,1748131838782,-420.0,0.00019232,2]
[362267261,1748131838791,-668.12,0.00019232,2]
[362267263,1748131838801,-420.0,0.00019232,2]
[362267265,1748131838810,-420.0,0.00019232,2]
[362267267,1748131838820,-815.21,0.00019232,2]
[362267269,1748131838829,-788.88,0.0001926,2]
[362267271,1748131838838,-420.0,0.0001926,2]
[362267273,1748131838847,-1292.76,0.0001926,2]
[362267274,1748131838856,-420.0,0.0001926,2]
[362267276,1748131838865,-12096.24,0.0001926,2]
[362267278,1748131838874,-420.0,0.0001926,2]
[362267280,1748131838883,-420.0,0.0001926,2]
[362267282,1748131838892,-420.0,0.0001926,2]
[362267284,1748131838901,-420.0,0.0001926,2]
[362267286,1748131838911,-420.0,0.0001926,2]
[362267288,1748131838920,-474.3,0.0001926,2]
[362267290,1748131838929,-420.0,0.0001926,2]
[362267292,1748131838938,-429.05,0.0001926,2]
[362267294,1748131838948,-754.94,0.0001926,2]
[362267296,1748131838957,-1701.69,0.0001926,2]
[362267298,1748131838966,-679.0,0.0001926,2]
[362267300,1748131838976,-420.0,0.0001926,2]
[362267302,1748131838985,-668.12,0.0001926,2]
[362267304,1748131838994,-420.0,0.0001926,2]
[362267306,1748131839003,-420.0,0.0001926,2]
[362267308,1748131839012,-815.21,0.0001926,2]
[362267310,1748131839021,-756.41278006,0.00019269,2]
[362267312,1748131839031,-500.0,0.00019273,2]
[362267314,1748131839039,-788.88,0.00019287,2]
[362267316,1748131839049,-420.0,0.00019287,2]
[362267318,1748131839058,-1292.76,0.00019287,2]
[362267320,1748131839067,-420.0,0.00019287,2]
[362267322,1748131839076,-12096.24,0.00019287,2]
[362267324,1748131839086,-420.0,0.00019287,2]
[362267326,1748131839096,-420.0,0.00019287,2]
[362267327,1748131839105,-420.0,0.00019287,2]
[362267330,1748131839115,-420.0,0.00019287,2]
[362267332,1748131839124,-474.3,0.00019287,2]
[362267334,1748131839144,-325.32,0.00019287,2]
[362267336,1748131839154,-429.05,0.00019287,2]
[362267338,1748131839165,-754.94,0.00019287,2]
[362267340,1748131839175,-1701.69,0.00019287,2]
[362267342,1748131839185,-679.0,0.00019287,2]
[362267343,1748131839194,-420.0,0.00019287,2]
[362267344,1748131839203,-668.12,0.00019287,2]
[362267345,1748131839212,-420.0,0.00019287,2]
[362267346,1748131839222,-420.0,0.00019287,2]
[362267347,1748131839234,-815.21,0.00019287,2]
[362267348,1748131839245,-262.15,0.00019308,2]
[362267349,1748131839257,-788.88,0.00019315,2]
[362267350,1748131839270,-420.0,0.00019315,2]
[362267351,1748131839282,-1292.76,0.00019315,2]
[362267352,1748131839293,-12096.24,0.00019315,2]
[362267353,1748131839304,-420.0,0.00019315,2]
[362267355,1748131839314,-420.0,0.00019315,2]
[362267356,1748131839324,-420.0,0.00019315,2]
[362267357,1748131839336,-420.0,0.00019315,2]
[362267358,1748131839348,-474.3,0.00019315,2]
[362267359,1748131839359,-429.05,0.00019315,2]
[362267360,1748131839370,-754.94,0.00019315,2]
[362267361,1748131839382,-1701.69,0.00019315,2]
[362267362,1748131839394,-679.0,0.00019315,2]
[362267363,1748131839409,-420.0,0.00019315,2]
[362267364,1748131839421,-668.12,0.00019315,2]
[362267365,1748131839438,-420.0,0.00019315,2]
[362267366,1748131839456,-420.0,0.00019315,2]
[362267367,1748131839467,-815.21,0.00019315,2]
[362267368,1748131839478,-1000.0,0.00019324,2]
[362267369,1748131839488,-756.41278004,0.00019339,2]
[362267370,1748131839498,-788.88,0.00019342,2]
[362267371,1748131839511,-420.0,0.00019342,2]
[362267372,1748131839522,-1292.76,0.00019342,2]
[362267373,1748131839534,-12096.24,0.00019342,2]
[362267374,1748131839545,-420.0,0.00019342,2]
[362267375,1748131839557,-420.0,0.00019342,2]
[362267376,1748131839570,-420.0,0.00019342,2]
[362267377,1748131839583,-420.0,0.00019342,2]
[362267378,1748131839594,-474.3,0.00019342,2]
[362267379,1748131839607,-429.05,0.00019342,2]
[362267380,1748131839619,-754.94,0.00019342,2]
[362267381,1748131839630,-1701.69,0.00019342,2]
[362267382,1748131839641,-679.0,0.00019342,2]
[362267383,1748131839654,-420.0,0.00019342,2]
[362267384,1748131839665,-668.12,0.00019342,2]
[362267385,1748131839677,-420.0,0.00019342,2]
[362267386,1748131839690,-420.0,0.00019342,2]
[362267387,1748131839702,-815.21,0.00019342,2]
[362267388,1748131839715,-788.88,0.00019369,2]
[362267389,1748131839727,-420.0,0.00019369,2]
[362267390,1748131839739,-1292.76,0.00019369,2]
[362267391,1748131839750,-1122.72995826,0.00019369,2]
[362267397,1748131840305,-4692.7587,0.00019369,2]
[362267398,1748131840320,-602.7,0.00019369,2]
[362267399,1748131840334,-5678.05134174,0.00019369,2]
[362267400,1748131840348,-538.03,0.00019369,2]
[362267401,1748131840360,-158.38,0.00019369,2]
[362267402,1748131840371,-467.57,0.00019369,2]
[362267403,1748131840382,-420.0,0.00019369,2]
[362267404,1748131840393,-474.3,0.00019369,2]
[362267405,1748131840404,-429.05,0.00019369,2]
[362267406,1748131840415,-754.94,0.00019369,2]
[362267407,1748131840427,-1701.69,0.00019369,2]
[362267408,1748131840438,-679.0,0.00019369,2]
[362267409,1748131840450,-197.43217477,0.00019369,2]
[362267410,1748131840465,-222.56782523,0.00019369,2]
[362267411,1748131840476,-668.12,0.00019369,2]
[362267412,1748131840489,-420.0,0.00019369,2]
[362267413,1748131840499,-420.0,0.00019369,2]
[362267414,1748131840509,-815.21,0.00019369,2]
[362267415,1748131840520,-788.88,0.00019397,2]
[362267416,1748131840531,-420.0,0.00019397,2]
[362267417,1748131840542,-1292.76,0.00019397,2]
[362267418,1748131840552,-12096.24,0.00019397,2]
[362267419,1748131840564,-420.0,0.00019397,2]
[362267420,1748131840575,-474.3,0.00019397,2]
[362267421,1748131840586,-429.05,0.00019397,2]
[362267422,1748131840596,-754.94,0.00019397,2]
[362267423,1748131840609,-1701.69,0.00019397,2]
[362267424,1748131840621,-679.0,0.00019397,2]
[362267425,1748131840632,-420.0,0.00019397,2]
[362267426,1748131840644,-668.12,0.00019397,2]
[362267427,1748131840654,-420.0,0.00019397,2]
[362267428,1748131840665,-420.0,0.00019397,2]
[362267429,1748131840677,-815.21,0.00019397,2]
[362267430,1748131840687,-170.3479135,0.00019406,2]
[362267431,1748131840698,-756.41278004,0.00019409,2]
[362267432,1748131840709,-788.88,0.00019424,2]
[362267433,1748131840719,-420.0,0.00019424,2]
[362267434,1748131840730,-1292.76,0.00019424,2]
[362267435,1748131840740,-12096.24,0.00019424,2]
[362267436,1748131840751,-420.0,0.00019424,2]
[362267437,1748131840762,-474.3,0.00019424,2]
[362267438,1748131840775,-429.05,0.00019424,2]
[362267439,1748131840788,-754.94,0.00019424,2]
[362267440,1748131840799,-1701.69,0.00019424,2]
[362267441,1748131840810,-679.0,0.00019424,2]
[362267442,1748131840822,-420.0,0.00019424,2]
[362267444,1748131840833,-668.12,0.00019424,2]
[362267446,1748131840845,-420.0,0.00019424,2]
[362267448,1748131840856,-420.0,0.00019424,2]
[362267450,1748131840867,-815.21,0.00019424,2]
[362267453,1748131840878,-788.88,0.00019452,2]
[362267456,1748131840888,-420.0,0.00019452,2]
[362267458,1748131840900,-1292.76,0.00019452,2]
[362267460,1748131840911,-12096.24,0.00019452,2]
[362267461,1748131840921,-420.0,0.00019452,2]
[362267462,1748131840932,-474.3,0.00019452,2]
[362267463,1748131840943,-429.05,0.00019452,2]
[362267464,1748131840954,-754.94,0.00019452,2]
[362267465,1748131840967,-1701.69,0.00019452,2]
[362267466,1748131840979,-679.0,0.00019452,2]
[362267467,1748131840991,-420.0,0.00019452,2]
[362267468,1748131841003,-668.12,0.00019452,2]
[362267469,1748131841015,-420.0,0.00019452,2]
[362267470,1748131841026,-420.0,0.00019452,2]
[362267471,1748131841037,-815.21,0.00019452,2]
[362267472,1748131841048,-788.88,0.00019479,2]
[362267473,1748131841060,-420.0,0.00019479,2]
[362267474,1748131841071,-1292.76,0.00019479,2]
[362267475,1748131841082,-12096.24,0.00019479,2]
[362267476,1748131841094,-256.35,0.00019479,2]
[362267477,1748131841105,-474.3,0.00019479,2]
[362267478,1748131841116,-429.05,0.00019479,2]
[362267479,1748131841127,-754.94,0.00019479,2]
[362267480,1748131841138,-1701.69,0.00019479,2]
[362267481,1748131841151,-679.0,0.00019479,2]
[362267482,1748131841162,-420.0,0.00019479,2]
[362267483,1748131841172,-668.12,0.00019479,2]
[362267484,1748131841183,-420.0,0.00019479,2]
[362267485,1748131841194,-420.0,0.00019479,2]
[362267486,1748131841206,-815.21,0.00019479,2]
[362267487,1748131841217,-756.41278004,0.00019479,2]
[362267488,1748131841227,-1999.17212899,0.00019489,2]
[362267489,1748131841239,-788.88,0.00019506,2]
[362267490,1748131841249,-420.0,0.00019506,2]
[362267491,1748131841260,-1292.76,0.00019506,2]
[362267492,1748131841271,-12096.24,0.00019506,2]
[362267493,1748131841282,-474.3,0.00019506,2]
[362267494,1748131841292,-429.05,0.00019506,2]
[362267495,1748131841304,-754.94,0.00019506,2]
[362267496,1748131841315,-1701.69,0.00019506,2]
[362267497,1748131841326,-679.0,0.00019506,2]
[362267498,1748131841337,-420.0,0.00019506,2]
[362267499,1748131841347,-668.12,0.00019506,2]
[362267500,1748131841357,-352.93,0.00019506,2]
[362267501,1748131841367,-420.0,0.00019506,2]
[362267502,1748131841378,-815.21,0.00019506,2]
[362267503,1748131841388,-788.88,0.00019534,2]
[362267504,1748131841398,-420.0,0.00019534,2]
[362267505,1748131841408,-1292.76,0.00019534,2]
[362267506,1748131841418,-12096.24,0.00019534,2]
[362267507,1748131841428,-474.3,0.00019534,2]
[362267508,1748131841438,-429.05,0.00019534,2]
[362267509,1748131841448,-754.94,0.00019534,2]
[362267510,1748131841459,-1701.69,0.00019534,2]
[362267511,1748131841469,-679.0,0.00019534,2]
[362267512,1748131841479,-420.0,0.00019534,2]
[362267513,1748131841488,-668.12,0.00019534,2]
[362267514,1748131841498,-420.0,0.00019534,2]
[362267515,1748131841509,-815.21,0.00019534,2]
[362267516,1748131841519,-1999.17212896,0.00019535,2]
[362267517,1748131841528,-196.93143404,0.00019543,2]
[362267518,1748131841538,-756.41278004,0.00019549,2]
[362267519,1748131841549,-788.88,0.00019561,2]
[362267520,1748131841559,-420.0,0.00019561,2]
[362267521,1748131841570,-1292.76,0.00019561,2]
[362267522,1748131841581,-12096.24,0.00019561,2]
[362267523,1748131841594,-474.3,0.00019561,2]
[362267524,1748131841604,-429.05,0.00019561,2]
[362267525,1748131841616,-754.94,0.00019561,2]
[362267526,1748131841627,-1701.69,0.00019561,2]
[362267527,1748131841638,-679.0,0.00019561,2]
[362267528,1748131841648,-420.0,0.00019561,2]
[362267529,1748131841658,-668.12,0.00019561,2]
[362267530,1748131841669,-420.0,0.00019561,2]
[362267531,1748131841679,-815.21,0.00019561,2]
[362267532,1748131841692,-170.34791349,0.00019571,2]
[362267533,1748131841704,-503.28319543,0.00019573,2]
[362267534,1748131841714,-500.0,0.00019573,2]
[362267535,1748131841727,-1999.17212896,0.0001958,2]
[362267536,1748131841739,-788.88,0.00019589,2]
[362267537,1748131841750,-420.0,0.00019589,2]
[362267538,1748131841761,-1292.76,0.00019589,2]
[362267539,1748131841772,-12096.24,0.00019589,2]
[362267540,1748131841782,-474.3,0.00019589,2]
[362267541,1748131841793,-429.05,0.00019589,2]
[362267542,1748131841806,-754.94,0.00019589,2]
[362267543,1748131841817,-1701.69,0.00019589,2]
[362267544,1748131841828,-679.0,0.00019589,2]
[362267545,1748131841839,-420.0,0.00019589,2]
[362267546,1748131841849,-668.12,0.00019589,2]
[362267547,1748131841861,-420.0,0.00019589,2]
[362267548,1748131841872,-815.21,0.00019589,2]
[362267549,1748131842253,-462.827106,0.00019599,2]
[362267550,1748131842277,-788.88,0.00019616,2]
[362267551,1748131842297,-394.67,0.00019616,2]
[362267552,1748131842309,-1292.76,0.00019616,2]
[362267553,1748131842319,-12096.24,0.00019616,2]
[362267554,1748131842329,-474.3,0.00019616,2]
[362267555,1748131842339,-429.05,0.00019616,2]
[362267556,1748131842348,-754.94,0.00019616,2]
[362267557,1748131842358,-1701.69,0.00019616,2]
[362267558,1748131842367,-679.0,0.00019616,2]
[362267559,1748131842377,-420.0,0.00019616,2]
[362267560,1748131842386,-668.12,0.00019616,2]
[362267561,1748131842395,-420.0,0.00019616,2]
[362267562,1748131842405,-815.21,0.00019616,2]
[362267563,1748131842414,-756.41278004,0.0001962,2]
[362267564,1748131842424,-1999.17212896,0.00019626,2]
[362267565,1748131842433,-788.88,0.00019643,2]
[362267566,1748131842442,-1292.76,0.00019643,2]
[362267567,1748131842451,-12096.24,0.00019643,2]
[362267568,1748131842461,-474.3,0.00019643,2]
[362267569,1748131842470,-429.05,0.00019643,2]
[362267570,1748131842480,-754.94,0.00019643,2]
[362267571,1748131842489,-1701.69,0.00019643,2]
[362267572,1748131842499,-679.0,0.00019643,2]
[362267573,1748131842508,-420.0,0.00019643,2]
[362267574,1748131842518,-668.12,0.00019643,2]
[362267575,1748131842527,-420.0,0.00019643,2]
[362267576,1748131842537,-815.21,0.00019643,2]
[362267577,1748131842547,-788.88,0.00019671,2]
[362267578,1748131842556,-1292.76,0.00019671,2]
[362267579,1748131842566,-12096.24,0.00019671,2]
[362267580,1748131842576,-474.3,0.00019671,2]
[362267581,1748131842585,-429.05,0.00019671,2]
[362267582,1748131842596,-754.94,0.00019671,2]
[362267583,1748131842605,-1701.69,0.00019671,2]
[362267584,1748131842615,-679.0,0.00019671,2]
[362267585,1748131842625,-420.0,0.00019671,2]
[362267586,1748131842634,-668.12,0.00019671,2]
[362267587,1748131842643,-420.0,0.00019671,2]
[362267588,1748131842652,-815.21,0.00019671,2]
[362267589,1748131842662,-1999.17212896,0.00019672,2]
[362267590,1748131842672,-756.41278004,0.0001969,2]
[362267591,1748131842682,-788.88,0.00019698,2]
[362267592,1748131842692,-1292.76,0.00019698,2]
[362267593,1748131842701,-12096.24,0.00019698,2]
[362267594,1748131842711,-474.3,0.00019698,2]
[362267595,1748131842721,-429.05,0.00019698,2]
[362267596,1748131842731,-754.94,0.00019698,2]
[362267597,1748131842741,-1701.69,0.00019698,2]
[362267598,1748131842751,-679.0,0.00019698,2]
[362267599,1748131842760,-420.0,0.00019698,2]
[362267600,1748131842770,-668.12,0.00019698,2]
[362267601,1748131842779,-420.0,0.00019698,2]
[362267602,1748131842789,-815.21,0.00019698,2]
[362267603,1748131842798,-1999.17212896,0.00019717,2]
[362267604,1748131842807,-788.88,0.00019726,2]
[362267605,1748131842817,-1292.76,0.00019726,2]
[362267606,1748131842826,-12096.24,0.00019726,2]
[362267607,1748131842836,-474.3,0.00019726,2]
[362267608,1748131842845,-429.05,0.00019726,2]
[362267609,1748131842855,-754.94,0.00019726,2]
[362267610,1748131842864,-1701.69,0.00019726,2]
[362267611,1748131842874,-679.0,0.00019726,2]
[362267612,1748131842884,-361.63,0.00019726,2]
[362267613,1748131842893,-668.12,0.00019726,2]
[362267614,1748131842903,-188.08,0.00019726,2]
[362267615,1748131842912,-815.21,0.00019726,2]
[362267616,1748131842922,-353.58,0.00019726,2]
[362267617,1748131842931,-353.58,0.00019726,2]
[362267618,1748131842941,-353.58,0.00019726,2]
[362267619,1748131842950,-353.58,0.00019726,2]
[362267622,1748131842960,-353.58,0.00019726,2]
[362267623,1748131842969,-353.58,0.00019726,2]
[362267624,1748131842978,-353.58,0.00019726,2]
[362267625,1748131842987,-706.88,0.00019726,2]
[362267626,1748131842996,-353.58,0.00019726,2]
[362267627,1748131843006,-353.58,0.00019726,2]
[362267628,1748131843015,-707.16,0.00019726,2]
[362267629,1748131843024,-170.34791349,0.00019735,2]
[362267630,1748131843033,-788.88,0.00019753,2]
[362267631,1748131843043,-1292.76,0.00019753,2]
[362267632,1748131843052,-12096.24,0.00019753,2]
[362267633,1748131843062,-474.3,0.00019753,2]
[362267634,1748131843071,-429.05,0.00019753,2]
[362267635,1748131843081,-754.94,0.00019753,2]
[362267636,1748131843090,-1701.69,0.00019753,2]
[362267637,1748131843100,-679.0,0.00019753,2]
[362267638,1748131843110,-668.12,0.00019753,2]
[362267639,1748131843119,-815.21,0.00019753,2]
[362267640,1748131843128,-756.41278004,0.0001976,2]
[362267641,1748131843138,-1999.17212896,0.00019763,2]
[362267642,1748131843149,-788.88,0.0001978,2]
[362267643,1748131843159,-1292.76,0.0001978,2]
[362267644,1748131843170,-12096.24,0.0001978,2]
[362267645,1748131843179,-474.3,0.0001978,2]
[362267646,1748131843188,-429.05,0.0001978,2]
[362267647,1748131843198,-754.94,0.0001978,2]
[362267648,1748131843208,-1701.69,0.0001978,2]
[362267649,1748131843217,-679.0,0.0001978,2]
[362267650,1748131843228,-668.12,0.0001978,2]
[362267651,1748131843237,-815.21,0.0001978,2]
[362267652,1748131843246,-1453.09,0.0001979,2]
[362267653,1748131843256,-5000.0,0.000198,2]
[362267654,1748131843266,-789.09,0.00019808,2]
[362267655,1748131843275,-1292.92,0.00019808,2]
[362267656,1748131843285,-12096.24000001,0.00019808,2]
[362267657,1748131843295,-474.5208273,0.00019808,2]
[362267658,1748131843304,-429.11,0.00019808,2]
[362267659,1748131843315,-755.1,0.00019808,2]
[362267660,1748131843324,-1701.71096604,0.00019808,2]
[362267661,1748131843334,-679.19,0.00019808,2]
[362267662,1748131843343,-668.13,0.00019808,2]
[362267663,1748131843353,-815.30000001,0.00019808,2]
[362267664,1748131843363,-1999.17212896,0.00019809,2]
[362267665,1748131843372,-624.87,0.00019809,2]
[362267666,1748131843383,-45279.85945242,0.0001981,2]
[362267667,1748131843393,-154.0,0.0001982,2]
[362267668,1748131843403,-1242.888,0.0001982,2]
[362267669,1748131843413,-756.41278004,0.0001983,2]
[362267670,1748131843422,-200.0,0.0001984,2]
[362267671,1748131843432,-1999.17212896,0.00019854,2]
[362267672,1748131843441,-500.0,0.00019873,2]
[362267673,1748131843451,-500.0,0.00019873,2]
[362267674,1748131843461,-978.847,0.0001989,2]
[362267676,1748131843471,-800.0,0.0001989,2]
[362267677,1748131843480,-630.0,0.0001989,2]
[362267678,1748131843490,-5000.0,0.000199,2]
[362267679,1748131843500,-168.58121526,0.000199,2]
[362267680,1748131843509,-1886.54387817,0.000199,2]
[362267681,1748131843520,-491.942,0.000199,2]
[362267682,1748131843530,-756.41278004,0.000199,2]
[362267683,1748131843541,-486.40533377,0.000199,2]
[362267684,1748131843551,-486.40533375,0.000199,2]
[362267685,1748131843561,-486.40533375,0.000199,2]